fUSD/lending_fUSD_20240223
["ID","MTS","AMOUNT","RATE_DAILY","PERIOD"]
[314986108,1708715493254,-500.0,0.000379,2]
[314986109,1708715493263,-98728.84721802,0.000379,2]
[314986110,1708715493273,-200.0,0.000379,11]
[314986111,1708715493282,-691763.606577,0.000379,3]
[314986112,1708715493292,-151.93764071,0.000379,2]
[314986113,1708715493302,-150.0,0.00037906,7]
[314986114,1708715493312,-500.0,0.00037918,10]
[314986115,1708715493323,-489.58517937,0.0003794,7]
[314986116,1708715493333,-172.80035688,0.0003794,7]
[314986117,1708715493343,-150.0,0.00037964,7]
[314986118,1708715493353,-150.0,0.00037967,7]
[314986119,1708715493363,-150.0,0.00037968,7]
[314986120,1708715493372,-489.58517937,0.00037982,7]
[314986121,1708715493382,-172.80035688,0.00037982,7]
[314986122,1708715493392,-3862.37804694,0.00037999,10]
[314986123,1708715493402,-100000.0,0.00038,8]
[314986124,1708715493411,-985.6,0.00038,10]
[314986125,1708715493421,-900.0,0.00038,39]
[314986126,1708715493431,-8324.3,0.00038,7]
[314986127,1708715493441,-7716.0,0.00038,7]
[314986128,1708715493450,-2000.0,0.00038,30]
[314986129,1708715493460,-3000.0,0.00038,12]
[314986130,1708715493470,-500.0,0.00038,2]
[314986131,1708715493480,-791.9073,0.00038,2]
[314986132,1708715493489,-2000.0,0.00038,4]
[314986133,1708715493499,-17613.92,0.00038,15]
[314986134,1708715493509,-1000.0,0.00038,2]
[314986135,1708715493519,-1000.0,0.00038,2]
[314986136,1708715493528,-368.97917356,0.00038,2]
[314986137,1708715493539,-864.72,0.00038,8]
[314986138,1708715493548,-10000.0,0.00038,7]
[314986139,1708715493558,-300.0,0.00038,12]
[314986140,1708715493568,-13603.67,0.00038,7]
[314986141,1708715493578,-866.8,0.00038,8]
[314986142,1708715493587,-352.0,0.00038,37]
[314986143,1708715493598,-507.13385054,0.00038,10]
[314986144,1708715493813,-1182.88043449,0.00038,5]
[314986145,1708715493851,-150.0,0.00038013,7]
[314986146,1708715493860,-489.58517937,0.00038023,7]
[314986147,1708715493872,-172.80035688,0.00038023,7]
[314986148,1708715493883,-150.0,0.00038028,7]
[314986149,1708715493892,-500.0,0.00038052,2]
[314986150,1708715493902,-150.0,0.00038058,7]
[314986151,1708715493914,-150.0,0.00038058,7]
[314986152,1708715493924,-175.0,0.00038059,2]
[314986153,1708715493933,-150.0,0.00038062,7]
[314986154,1708715493943,-489.58517937,0.00038065,7]
[314986155,1708715493954,-172.80035688,0.00038065,7]
[314986156,1708715493964,-150.0,0.00038068,2]
[314986157,1708715493973,-500.0,0.00038082,4]
[314986158,1708715493982,-260.95699805,0.00038083,2]
[314986159,1708715493991,-150.0,0.0003809,7]
[314986160,1708715494001,-3862.37804694,0.0003809,10]
[314986161,1708715494010,-150.03630934,0.00038103,2]
[314986162,1708715494019,-489.58517937,0.00038106,7]
[314986163,1708715494028,-172.80035688,0.00038106,7]
[314986164,1708715494038,-370.40545673,0.00038123,2]
[314986165,1708715494048,-150.0,0.00038147,7]
[314986166,1708715494057,-489.58517937,0.00038148,7]
[314986167,1708715494066,-172.80035688,0.00038148,7]
[314986168,1708715494075,-150.0,0.00038151,7]
[314986169,1708715494085,-150.0,0.0003816,7]
[314986170,1708715494094,-312.44,0.00038175,2]
[314986171,1708715494104,-489.58517937,0.00038189,7]
[314986172,1708715494114,-172.80035688,0.00038189,7]
[314986173,1708715494123,-155.0,0.000382,7]
[314986174,1708715494133,-500.0,0.00038204,2]
[314986175,1708715494142,-150.0,0.00038212,2]
[314986176,1708715494151,-150.0,0.00038212,7]
[314986177,1708715494160,-221.93019744,0.00038215,2]
[314986178,1708715494169,-489.58517937,0.00038231,7]
[314986179,1708715494179,-172.80035688,0.00038231,7]
[314986180,1708715494188,-150.0,0.00038236,7]
[314986181,1708715494197,-150.0,0.00038236,7]
[314986182,1708715494207,-150.0,0.00038257,7]
[314986183,1708715494216,-150.0,0.0003827,7]
[314986184,1708715494226,-489.58517937,0.00038272,7]
[314986185,1708715494235,-172.80035688,0.00038272,7]
[314986186,1708715494244,-150.0,0.00038274,7]
[314986187,1708715494253,-489.58517937,0.00038314,7]
[314986188,1708715494262,-172.80035688,0.00038314,7]
[314986189,1708715494271,-152.0,0.00038316,18]
[314986190,1708715494281,-150.0,0.00038326,7]
[314986191,1708715494290,-150.0,0.00038335,7]
[314986192,1708715494300,-10000.0,0.00038352,2]
[314986193,1708715494309,-489.58517937,0.00038355,7]
[314986194,1708715494318,-172.80035688,0.00038355,7]
[314986195,1708715494328,-150.0,0.00038355,7]
[314986196,1708715494337,-150.0,0.00038355,7]
[314986197,1708715494348,-150.0,0.00038355,7]
[314986198,1708715494358,-500.0,0.00038356,2]
[314986199,1708715494367,-500.0,0.00038356,2]
[314986200,1708715494376,-501.10336645,0.00038356,2]
[314986201,1708715494386,-300.0,0.00038356,20]
[314986202,1708715494396,-300.0,0.00038356,7]
[314986203,1708715494405,-500.0,0.00038356,4]
[314986204,1708715494414,-219.05032652,0.00038356,30]
[314986205,1708715494424,-4000.0,0.00038356,30]
[314986206,1708715494434,-4214.21,0.00038356,15]
[314986207,1708715494443,-500.0,0.00038356,2]
[314986208,1708715494453,-1602.01745874,0.0003836,7]
[314986209,1708715494462,-1602.01745874,0.0003836,7]
[314986210,1708715494472,-1602.01745874,0.0003836,7]
[314986211,1708715494481,-1602.01745874,0.0003836,7]
[314986212,1708715494491,-1602.01745874,0.0003836,7]
[314986213,1708715494500,-1602.01745874,0.0003836,7]
[314986214,1708715494510,-1602.01745874,0.0003836,7]
[314986215,1708715494519,-1602.01745874,0.0003836,7]
[314986216,1708715494530,-1602.01745874,0.0003836,7]
[314986217,1708715494539,-1602.01745874,0.0003836,7]
[314986218,1708715494548,-1602.01745874,0.0003836,7]
[314986219,1708715494559,-1602.01745874,0.0003836,7]
[314986220,1708715494568,-1602.01745874,0.0003836,7]
[314986221,1708715494578,-1602.01745874,0.0003836,7]
[314986222,1708715494587,-1602.01745874,0.0003836,7]
[314986223,1708715494597,-1602.01745874,0.0003836,7]
[314986224,1708715494607,-1602.01745874,0.0003836,7]
[314986225,1708715494616,-1602.01745874,0.0003836,7]
[314986226,1708715494626,-1602.01745874,0.0003836,7]
[314986227,1708715494635,-1602.01,0.0003836,7]
[314986228,1708715494645,-718.71159619,0.0003836,7]
[314986229,1708715494654,-718.71159619,0.0003836,7]
[314986230,1708715494663,-718.71159619,0.0003836,7]
[314986231,1708715494673,-718.71159619,0.0003836,7]
[314986232,1708715494683,-718.71159619,0.0003836,7]
[314986233,1708715494692,-718.71159619,0.0003836,7]
[314986234,1708715494702,-718.71159619,0.0003836,7]
[314986235,1708715494711,-718.71159619,0.0003836,7]
[314986236,1708715494720,-718.71159619,0.0003836,7]
[314986237,1708715494729,-718.71159619,0.0003836,7]
[314986238,1708715494738,-718.71159619,0.0003836,7]
[314986239,1708715494747,-718.71159619,0.0003836,7]
[314986240,1708715494757,-718.71159619,0.0003836,7]
[314986241,1708715494766,-718.71159619,0.0003836,7]
[314986242,1708715494775,-718.71159619,0.0003836,7]
[314986243,1708715494785,-718.71159619,0.0003836,7]
[314986244,1708715494794,-718.71159619,0.0003836,7]
[314986245,1708715494803,-718.71159619,0.0003836,7]
[314986246,1708715494813,-718.71159619,0.0003836,7]
[314986247,1708715494822,-718.71,0.0003836,7]
[314986248,1708715494832,-1125.41885497,0.0003836,7]
[314986249,1708715494841,-1125.41885497,0.0003836,7]
[314986250,1708715494852,-1125.41885497,0.0003836,7]
[314986251,1708715494862,-1125.41885497,0.0003836,7]
[314986252,1708715494872,-1125.41885497,0.0003836,7]
[314986253,1708715494882,-1125.41885497,0.0003836,7]
[314986254,1708715494891,-1125.41885497,0.0003836,7]
[314986255,1708715494900,-1125.41885497,0.0003836,7]
[314986256,1708715494911,-1125.41885497,0.0003836,7]
[314986257,1708715494920,-1125.41885497,0.0003836,7]
[314986258,1708715494929,-1125.41885497,0.0003836,7]
[314986259,1708715494938,-1125.41885497,0.0003836,7]
[314986260,1708715494949,-1125.41885497,0.0003836,7]
[314986261,1708715494958,-1125.41885497,0.0003836,7]
[314986262,1708715494968,-1125.41885497,0.0003836,7]
[314986263,1708715494977,-1125.41885497,0.0003836,7]
[314986264,1708715494986,-1125.41885497,0.0003836,7]
[314986265,1708715494995,-1125.41885497,0.0003836,7]
[314986266,1708715495005,-1125.41885497,0.0003836,7]
[314986267,1708715495014,-1125.41,0.0003836,7]
[314986268,1708715495024,-451.44047643,0.0003836,7]
[314986269,1708715495034,-451.44047643,0.0003836,7]
[314986270,1708715495044,-451.44047643,0.0003836,7]
[314986271,1708715495054,-451.44047643,0.0003836,7]
[314986272,1708715495064,-451.44047643,0.0003836,7]
[314986273,1708715495074,-451.44047643,0.0003836,7]
[314986274,1708715495085,-451.44047643,0.0003836,7]
[314986275,1708715495095,-451.44047643,0.0003836,7]
[314986276,1708715495107,-451.44047643,0.0003836,7]
[314986277,1708715495116,-451.44047643,0.0003836,7]
[314986278,1708715495126,-451.44047643,0.0003836,7]
[314986279,1708715495137,-451.44047643,0.0003836,7]
[314986280,1708715495148,-451.44047643,0.0003836,7]
[314986281,1708715495159,-451.44047643,0.0003836,7]
[314986282,1708715495169,-451.44047643,0.0003836,7]
[314986283,1708715495179,-451.44047643,0.0003836,7]
[314986284,1708715495189,-451.44047643,0.0003836,7]
[314986285,1708715495200,-451.44047643,0.0003836,7]
[314986286,1708715495210,-451.44047643,0.0003836,7]
[314986287,1708715495220,-451.44,0.0003836,7]
[314986288,1708715495230,-1162.60442055,0.0003836,7]
[314986289,1708715495240,-1162.60442055,0.0003836,7]
[314986290,1708715495251,-1162.60442055,0.0003836,7]
[314986291,1708715495260,-1162.60442055,0.0003836,7]
[314986292,1708715495270,-1162.60442055,0.0003836,7]
[314986293,1708715495280,-1162.60442055,0.0003836,7]
[314986294,1708715495290,-1162.60442055,0.0003836,7]
[314986295,1708715495301,-1162.60442055,0.0003836,7]
[314986296,1708715495311,-1162.60442055,0.0003836,7]
[314986297,1708715495321,-1162.60442055,0.0003836,7]
[314986298,1708715495331,-1162.60442055,0.0003836,7]
[314986299,1708715495341,-1162.60442055,0.0003836,7]
[314986300,1708715495352,-1162.60442055,0.0003836,7]
[314986301,1708715495363,-1162.60442055,0.0003836,7]
[314986302,1708715495374,-1162.60442055,0.0003836,7]
[314986303,1708715495384,-1162.60442055,0.0003836,7]
[314986304,1708715495394,-1162.60442055,0.0003836,7]
[314986305,1708715495405,-1162.60442055,0.0003836,7]
[314986306,1708715495415,-1162.60442055,0.0003836,7]
[314986307,1708715495425,-1162.6,0.0003836,7]
[314986308,1708715495435,-6742.31,0.0003836,2]
[314986309,1708715495445,-6742.31,0.0003836,2]
[314986310,1708715495456,-6742.31,0.0003836,2]
[314986311,1708715495466,-6742.31,0.0003836,2]
[314986312,1708715495475,-6742.31,0.0003836,2]
[314986313,1708715495486,-260.95699805,0.00038368,2]
[314986314,1708715495496,-150.03630934,0.00038369,2]
[314986315,1708715495505,-150.0,0.00038396,7]
[314986316,1708715495515,-489.58517937,0.00038397,7]
[314986317,1708715495525,-172.80035688,0.00038397,7]
[314986318,1708715495535,-2000.0,0.000384,2]
[314986319,1708715495545,-8000.0,0.000384,2]
[314986320,1708715495555,-150.0,0.00038415,7]
[314986321,1708715495564,-150.0,0.00038415,7]
[314986322,1708715495575,-489.58517937,0.00038438,7]
[314986323,1708715495583,-172.80035688,0.00038438,7]
[314986324,1708715495593,-150.0,0.00038453,7]
[314986325,1708715495603,-150.0,0.00038458,7]
[314986326,1708715495613,-500.0,0.00038466,10]
[314986327,1708715495623,-536.19140516,0.00038466,10]
[314986328,1708715495632,-489.58517937,0.0003848,7]
[314986329,1708715495642,-172.80035688,0.0003848,7]
[314986330,1708715495652,-150.0,0.000385,3]
[314986331,1708715495661,-1000.0,0.000385,16]
[314986332,1708715495671,-10000.0,0.000385,14]
[314986333,1708715495681,-480.0,0.000385,2]
[314986334,1708715495690,-160.0,0.000385,7]
[314986335,1708715495700,-150.0,0.00038504,7]
[314986336,1708715495709,-500.0,0.00038508,2]
[314986337,1708715495719,-6892.55022949,0.00038515,2]
[314986338,1708715495728,-150.0,0.00038519,7]
[314986339,1708715495737,-489.58517937,0.00038521,7]
[314986340,1708715495746,-172.80035688,0.00038521,7]
[314986341,1708715495756,-150.0,0.00038527,7]
[314986342,1708715495766,-328.0,0.00038534,2]
[314986343,1708715495776,-150.0,0.00038551,7]
[314986344,1708715495785,-489.58517937,0.00038563,7]
[314986345,1708715495795,-172.80035688,0.00038563,7]
[314986346,1708715495804,-150.0,0.0003858,7]
[314986347,1708715495815,-150.0,0.00038594,7]
[314986348,1708715495824,-150.0,0.00038594,7]
[314986349,1708715495837,-489.58517937,0.00038604,7]
[314986350,1708715495847,-172.80035688,0.00038604,7]
[314986351,1708715495857,-500.0,0.0003863,5]
[314986352,1708715495868,-500.0,0.0003863,4]
[314986353,1708715495879,-831.31,0.0003863,2]
[314986354,1708715495889,-150.03630934,0.00038634,2]
[314986355,1708715495898,-150.0,0.00038642,7]
[314986356,1708715495908,-489.58517937,0.00038646,7]
[314986357,1708715495919,-172.80035688,0.00038646,7]
[314986358,1708715495930,-150.0,0.00038649,7]
[314986359,1708715495939,-159.215893,0.0003865,7]
[314986360,1708715495950,-212.93145,0.0003865,7]
[314986361,1708715495960,-163.456991,0.0003865,7]
[314986362,1708715495970,-172.568888,0.0003865,7]
[314986363,1708715495980,-152.669311,0.0003865,7]
[314986364,1708715495989,-260.95699805,0.00038653,2]
[314986365,1708715495999,-500.0,0.00038661,2]
[314986366,1708715496009,-846243.79043052,0.00038675,2]
[314986367,1708715496018,-150.0,0.00038683,7]
[314986368,1708715496028,-489.58517937,0.00038687,7]
[314986369,1708715496038,-172.80035688,0.00038687,7]
[314986370,1708715496048,-150.0,0.00038703,7]
[314986371,1708715496058,-489.58517937,0.00038729,7]
[314986372,1708715496067,-172.80035688,0.00038729,7]
[314986373,1708715496077,-150.0,0.00038747,7]
[314986374,1708715496088,-150.0,0.00038764,7]
[314986375,1708715496098,-1188.86044181,0.00038765,2]
[314986376,1708715496108,-489.58517937,0.0003877,7]
[314986377,1708715496118,-172.80035688,0.0003877,7]
[314986378,1708715496128,-150.0,0.00038772,7]
[314986379,1708715496137,-150.0,0.00038772,7]
[314986380,1708715496147,-150.0,0.00038783,7]
[314986381,1708715496157,-150.0,0.00038789,2]
[314986382,1708715496166,-20000.35101134,0.000388,2]
[314986383,1708715496177,-489.58517937,0.00038812,7]
[314986384,1708715496187,-172.80035688,0.00038812,7]
[314986385,1708715496197,-500.0,0.00038813,2]
[314986386,1708715496207,-150.0,0.00038826,7]
[314986387,1708715496218,-150.0,0.00038845,7]
[314986388,1708715496228,-489.58517937,0.00038853,7]
[314986389,1708715496237,-172.80035688,0.00038853,7]
[314986390,1708715496247,-150.0,0.00038862,7]
[314986391,1708715496258,-36509.09024655,0.0003888,2]
[314986392,1708715496267,-150.0,0.00038887,7]
[314986393,1708715496277,-489.58517937,0.00038895,7]
[314986394,1708715496287,-172.80035688,0.00038895,7]
[314986395,1708715496300,-1000.0,0.00038899,2]
[314986396,1708715496310,-150.03630934,0.00038899,2]
[314986397,1708715496319,-10000.07253252,0.000389,2]
[314986398,1708715496329,-2000.0,0.000389,2]
[314986399,1708715496338,-153.39,0.000389,3]
[314986400,1708715496348,-153.39,0.000389,3]
[314986401,1708715496358,-153.39,0.000389,3]
[314986402,1708715496367,-153.39,0.000389,3]
[314986403,1708715496377,-153.39,0.000389,3]
[314986404,1708715496386,-153.39,0.000389,3]
[314986405,1708715496396,-153.39,0.000389,3]
[314986406,1708715496405,-153.39,0.000389,3]
[314986407,1708715496415,-153.39,0.000389,3]
[314986408,1708715496425,-153.39,0.000389,3]
[314986409,1708715496434,-153.39,0.000389,3]
[314986410,1708715496443,-153.39,0.000389,3]
[314986411,1708715496453,-153.39,0.000389,3]
[314986412,1708715496462,-153.39,0.000389,3]
[314986413,1708715496472,-153.39,0.000389,3]
[314986414,1708715496481,-153.39,0.000389,3]
[314986415,1708715496491,-153.39,0.000389,3]
[314986416,1708715496500,-153.39,0.000389,3]
[314986417,1708715496510,-153.39,0.000389,3]
[314986418,1708715496519,-153.39,0.000389,3]
[314986419,1708715496530,-153.39,0.000389,3]
[314986420,1708715496539,-153.39,0.000389,3]
[314986421,1708715496548,-153.39,0.000389,3]
[314986422,1708715496558,-153.39,0.000389,3]
[314986423,1708715496567,-150.105141,0.000389,2]
[314986424,1708715496576,-7841.03,0.000389,3]
[314986425,1708715496586,-7841.03,0.000389,3]
[314986426,1708715496595,-7841.03,0.000389,3]
[314986427,1708715496606,-7841.03,0.000389,3]
[314986428,1708715496615,-7841.03,0.000389,3]
[314986429,1708715496625,-7841.03,0.000389,3]
[314986430,1708715496634,-7841.03,0.000389,3]
[314986431,1708715496644,-7841.03,0.000389,3]
[314986432,1708715496653,-7841.03,0.000389,3]
[314986433,1708715496662,-7841.03,0.000389,3]
[314986434,1708715496672,-7841.03,0.000389,3]
[314986435,1708715496682,-7841.03,0.000389,3]
[314986436,1708715496691,-7841.03,0.000389,3]
[314986437,1708715496700,-7841.03,0.000389,3]
[314986438,1708715496710,-7841.03,0.000389,3]
[314986439,1708715496720,-7841.03,0.000389,3]
[314986440,1708715496729,-7841.03,0.000389,3]
[314986441,1708715496739,-7841.03,0.000389,3]
[314986442,1708715496748,-7841.03,0.000389,3]
[314986443,1708715496758,-7841.03,0.000389,3]
[314986444,1708715496767,-200.0,0.000389,12]
[314986445,1708715496776,-130821.10467647,0.00038902,120]
[314986446,1708715496785,-2103.02881471,0.00038903,2]
[314986447,1708715496794,-1794.58711744,0.00038903,2]
[314986448,1708715496803,-500.0,0.00038904,4]
[314986449,1708715496813,-489.137429,0.00038904,14]
[314986450,1708715496822,-150.0,0.00038933,2]
[314986451,1708715496831,-489.58517937,0.00038936,7]
[314986452,1708715496840,-172.80035688,0.00038936,7]
[314986453,1708715496850,-260.95699805,0.00038938,2]
[314986454,1708715496861,-5013.18,0.0003894,2]
[314986455,1708715496871,-150.0,0.00038942,7]
[314986456,1708715496883,-150.0,0.00038948,7]
[314986457,1708715496893,-150.0,0.00038951,7]
[314986458,1708715496903,-150.0,0.00038951,7]
[314986459,1708715496914,-152.0,0.00038958,19]
[314986460,1708715496923,-500.0,0.00038965,2]
[314986461,1708715496932,-15751.37045,0.0003897,4]
[314986462,1708715497123,-40666.10366427,0.0003897,2]
[314986463,1708715497132,-489.58517937,0.00038978,7]
[314986464,1708715497142,-172.80035688,0.00038978,7]
[314986465,1708715497151,-1202.25850692,0.0003898,30]
[314986466,1708715497161,-5000.0,0.00038986,4]
[314986467,1708715497170,-5000.0,0.00038986,4]
[314986468,1708715497178,-5000.0,0.00038986,4]
[314986469,1708715497188,-5000.0,0.00038986,4]
[314986470,1708715497197,-5000.0,0.00038986,4]
[314986471,1708715497207,-5000.0,0.00038986,4]
[314986472,1708715497216,-5000.0,0.00038986,4]
[314986473,1708715497225,-5000.0,0.00038986,4]
[314986474,1708715497235,-5000.0,0.00038986,4]
[314986475,1708715497244,-5000.0,0.00038986,4]
[314986476,1708715497253,-5000.0,0.00038986,4]
[314986477,1708715497263,-100000.0,0.00039,9]
[314986478,1708715497272,-18586.66,0.00039,2]
[314986479,1708715497281,-661.394374,0.00039,14]
[314986480,1708715497290,-500.0,0.00039,2]
[314986481,1708715497300,-10000.0,0.00039,5]
[314986482,1708715497309,-13998.81,0.00039,7]
[314986483,1708715497318,-1157.7,0.00039,10]
[314986484,1708715497327,-26829.4058721,0.00039,5]
[314986485,1708715497337,-900.0,0.00039,40]
[314986486,1708715497346,-6808.0,0.00039,30]
[314986487,1708715497356,-1000.0,0.00039,2]
[314986488,1708715497365,-211.52599688,0.00039,7]
[314986489,1708715497374,-12819.26875431,0.00039,2]
[314986490,1708715497384,-200.0,0.00039,120]
[314986491,1708715497393,-49446.79113812,0.00039,7]
[314986492,1708715497402,-10000.0,0.00039,14]
[314986493,1708715497411,-300.0,0.00039,14]
[314986494,1708715497421,-13603.67,0.00039,7]
[314986495,1708715497430,-10044.05,0.00039,7]
[314986496,1708715497439,-1000.0,0.00039,39]
[314986497,1708715497448,-150549.24303717,0.00039,3]
[314986498,1708715497458,-71028.89661177,0.00039,2]
[314986499,1708715497467,-1415.16526184,0.00039,2]
[314986500,1708715497477,-3000.0,0.00039,37]
[314986501,1708715497487,-249.0,0.00039,7]
[314986502,1708715497497,-1100.0,0.00039,3]
[314986503,1708715497507,-164153.36685083,0.00039002,2]
[314986504,1708715497517,-10130.548773,0.00039002,2]
[314986505,1708715497526,-881.02530836,0.00039002,2]
[314986506,1708715497535,-26624.69041428,0.00039002,2]
[314986507,1708715497544,-9201.37670606,0.00039002,2]
[314986508,1708715497554,-464.94389632,0.00039002,2]
[314986509,1708715497563,-1521.57599667,0.00039002,2]
[314986510,1708715497572,-14691.47060572,0.00039002,2]
[314986511,1708715497581,-229.78217943,0.00039002,2]
[314986512,1708715497590,-2056.25341048,0.00039002,2]
[314986513,1708715497600,-389.89450715,0.00039002,2]
[314986514,1708715497610,-528.64661815,0.00039002,2]
[314986515,1708715497618,-13499.46531421,0.00039002,2]
[314986516,1708715497628,-351.66496328,0.00039002,2]
[314986517,1708715497637,-587.86852622,0.00039002,2]
[314986518,1708715497646,-9420.31910755,0.00039002,2]
[314986519,1708715497656,-324.79605927,0.00039002,14]
[314986520,1708715497666,-500.0,0.00039002,7]
[314986521,1708715497675,-589.06764261,0.00039002,6]
[314986522,1708715497685,-1419.15191222,0.00039002,2]
[314986523,1708715497695,-14586.45976121,0.00039002,2]
[314986524,1708715497704,-2652.52648375,0.00039002,3]
[314986525,1708715497714,-1030.29110501,0.00039002,2]
[314986526,1708715497725,-14424.63360497,0.00039002,2]
[314986527,1708715497734,-6000.0,0.00039002,2]
[314986528,1708715497743,-10235.06376175,0.00039002,2]
[314986529,1708715497753,-343.81868289,0.00039002,2]
[314986530,1708715497762,-200.0,0.00039002,2]
[314986531,1708715497772,-18165.77660345,0.00039002,2]
[314986532,1708715497781,-630.26289348,0.00039002,2]
[314986533,1708715497790,-604.50653954,0.00039002,2]
[314986534,1708715497800,-207.27708609,0.00039002,2]
[314986535,1708715497809,-148048.01539428,0.00039002,2]
[314986536,1708715497819,-45648.64292026,0.00039002,2]
[314986537,1708715497828,-433.46658915,0.00039002,2]
[314986538,1708715497837,-1029.57509283,0.00039002,2]
[314986539,1708715497846,-20502.25570675,0.00039002,2]
[314986540,1708715497856,-2500.0,0.00039002,2]
[314986541,1708715497865,-928952.60680885,0.00039002,7]
[314986542,1708715497877,-559.13826844,0.00039002,2]
[314986543,1708715497886,-26825.22355554,0.00039002,2]
[314986544,1708715497896,-2296.68390071,0.00039002,2]
[314986545,1708715497905,-232.34710427,0.00039002,2]
[314986546,1708715497915,-520.28362511,0.00039002,2]
[314986547,1708715497925,-155427.71445202,0.00039002,2]
[314986548,1708715497934,-12923.500128,0.00039002,2]
[314986549,1708715497943,-3131.11375684,0.00039002,2]
[314986550,1708715497953,-167.92932559,0.00039002,2]
[314986551,1708715497963,-10042.25079439,0.00039002,2]
[314986552,1708715497973,-21980.1381731,0.00039002,2]
[314986553,1708715497982,-3673.89271328,0.00039002,2]
[314986554,1708715497991,-4829.28042981,0.00039002,2]
[314986555,1708715498001,-174.19666155,0.00039002,2]
[314986556,1708715498010,-161.90882935,0.00039002,2]
[314986557,1708715498019,-8901.03545713,0.00039002,2]
[314986558,1708715498029,-1264.01432454,0.00039002,2]
[314986559,1708715498039,-4765.48330874,0.00039002,2]
[314986560,1708715498049,-41140.19991226,0.00039002,2]
[314986561,1708715498058,-21868.05009822,0.00039002,2]
[314986562,1708715498068,-382.08878733,0.00039002,2]
[314986563,1708715498077,-6061.13920336,0.00039002,2]
[314986564,1708715498091,-1046.46664513,0.00039002,2]
[314986565,1708715498101,-6031.28528896,0.00039002,2]
[314986566,1708715498111,-21715.65800119,0.00039002,12]
[314986567,1708715498120,-17106.02417887,0.00039002,2]
[314986568,1708715498130,-5085.17185604,0.00039002,14]
[314986569,1708715498139,-6000.0,0.00039002,7]
[314986570,1708715498149,-1004.5464446,0.00039002,10]
[314986571,1708715498159,-275.0,0.00039002,14]
[314986572,1708715498168,-9239.14099045,0.00039002,8]
[314986573,1708715498178,-90717.49130744,0.00039002,10]
[314986574,1708715498187,-4800.0,0.00039002,10]
[314986575,1708715498197,-4542.2422817,0.00039002,10]
[314986576,1708715498207,-18798.06439258,0.00039002,3]
[314986577,1708715498216,-3804.82863862,0.00039002,3]
[314986578,1708715498227,-5932.0,0.00039002,7]
[314986579,1708715498236,-285525.5602599,0.00039002,2]
[314986580,1708715498246,-42000.0,0.00039002,7]
[314986581,1708715498256,-1057.76831842,0.00039002,7]
[314986582,1708715498265,-16353.40280453,0.00039002,7]
[314986583,1708715498274,-51132.45727659,0.00039002,7]
[314986584,1708715498284,-70480.26249685,0.00039002,7]
[314986585,1708715498651,-500.0,0.00027397,2]
[314986586,1708715498664,-129.39,0.00027397,2]
[314986587,1708715498673,-166.0,0.00038202,2]
[314986588,1708715498683,-792.29386324,0.00039002,7]
[314986589,1708715498694,-2123.85659371,0.00039002,7]
[314986590,1708715498706,-480.95,0.00039002,7]
[314986591,1708715498718,-567.90811148,0.00039002,7]
[314986592,1708715498742,-1011.99388521,0.00039002,7]
[314986593,1708715498754,-972.65576245,0.00039002,7]
[314986594,1708715498766,-8232.75379429,0.00039002,7]
[314986595,1708715498775,-3638.731671,0.00039002,7]
[314986596,1708715498787,-85.37832068,0.00039002,7]
[314986597,1708715498796,-294.78324167,0.00039002,6]
[314986598,1708715498821,-174.37222919,0.00027188,5]
[314986599,1708715498830,-16947.78185279,0.00039002,6]
[314986600,1708715498842,-4022.05534833,0.00039002,6]
[314986601,1708715498855,-1311.94655948,0.00039002,6]
[314986602,1708715498866,-1607.42146589,0.00039002,6]
[314986603,1708715498883,-10526.23897798,0.00039002,6]
[314986604,1708715498894,-4927.80548323,0.00039002,6]
[314986605,1708715498907,-10361.96707063,0.00039002,6]
[314986606,1708715498918,-50000.0,0.00039002,5]
[314986607,1708715498927,-4999.999999,0.00039002,2]